[Event "*** Titled Tuesday 3|2 Blitz"]
[Site "Chess.com"]
[Date "2016.05.03"]
[Round "1"]
[White "pedromartinez91"]
[Black "BartoszSocko"]
[Result "0-1"]
[WhiteElo "2338"]
[BlackElo "2700"]
[TimeControl "180+2"]
[EndTime "11:08:36 PDT"]
[Termination "BartoszSocko won by resignation"]

1. e4 {[%clk 0:03:00.7]} 1... e6 {[%clk 0:02:55.5]} 2. d4 {[%clk 0:03:00.1]}
2... d5 {[%clk 0:02:56.6]} 3. Nd2 {[%clk 0:03:01.6]} 3... Nf6 {[%clk 0:02:57.2]}
4. e5 {[%clk 0:03:02.3]} 4... Nfd7 {[%clk 0:02:58.3]} 5. Bd3 {[%clk 0:03:03.8]}
5... c5 {[%clk 0:02:59.4]} 6. c3 {[%clk 0:03:04.8]} 6... b6 {[%clk 0:03:00.8]}
7. Ne2 {[%clk 0:03:04.5]} 7... Ba6 {[%clk 0:03:01.8]} 8. Bxa6 {[%clk 0:03:05.4]}
8... Nxa6 {[%clk 0:03:03.7]} 9. Nf3 {[%clk 0:03:04.9]} 9... Nc7 {[%clk
0:03:03.9]} 10. O-O {[%clk 0:03:04.1]} 10... Be7 {[%clk 0:03:04.9]} 11. Nf4
{[%clk 0:03:04.6]} 11... O-O {[%clk 0:03:05.5]} 12. Nh5 {[%clk 0:03:05.1]} 12...
f5 {[%clk 0:02:57.8]} 13. exf6 {[%clk 0:02:58.9]} 13... Nxf6 {[%clk 0:02:58.9]}
14. Nxf6+ {[%clk 0:02:53.7]} 14... Bxf6 {[%clk 0:03:00.8]} 15. Bf4 {[%clk
0:02:53.5]} 15... Nb5 {[%clk 0:02:50.8]} 16. Be5 {[%clk 0:02:38.4]} 16... Nd6
{[%clk 0:02:46.5]} 17. Bxd6 {[%clk 0:02:26.6]} 17... Qxd6 {[%clk 0:02:48.4]} 18.
Qe2 {[%clk 0:02:27.8]} 18... Rae8 {[%clk 0:02:47.4]} 19. Rfe1 {[%clk 0:02:28]}
19... Qf4 {[%clk 0:02:41.6]} 20. Qe3 {[%clk 0:02:25.8]} 20... Qxe3 {[%clk
0:02:39]} 21. Rxe3 {[%clk 0:02:26.2]} 21... Kf7 {[%clk 0:02:36.9]} 22. Rae1
{[%clk 0:02:24.3]} 22... Re7 {[%clk 0:02:36.8]} 23. Ne5+ {[%clk 0:01:59.6]}
23... Bxe5 {[%clk 0:02:37.9]} 24. Rxe5 {[%clk 0:02:00.5]} 24... cxd4 {[%clk
0:02:39.3]} 25. cxd4 {[%clk 0:02:00.5]} 25... Rc8 {[%clk 0:02:40.3]} 26. f4
{[%clk 0:02:01.5]} 26... g6 {[%clk 0:02:32.3]} 27. Kf2 {[%clk 0:01:45.8]} 27...
Rc4 {[%clk 0:02:28.6]} 28. Ke3 {[%clk 0:01:43.3]} 28... Rec7 {[%clk 0:02:29.5]}
29. Kd3 {[%clk 0:01:42]} 29... R7c6 {[%clk 0:02:28.1]} 30. R5e2 {[%clk
0:01:39.4]} 30... a5 {[%clk 0:02:23.1]} 31. Rd1 {[%clk 0:01:25.2]} 31... a4
{[%clk 0:02:23.1]} 32. a3 {[%clk 0:01:24]} 32... b5 {[%clk 0:02:23.2]} 33. Rdd2
{[%clk 0:01:25.1]} 33... b4 {[%clk 0:02:24]} 34. Rc2 {[%clk 0:01:21.5]} 34... b3
{[%clk 0:02:16.7]} 35. Rxc4 {[%clk 0:01:16.7]} 35... Rxc4 {[%clk 0:02:18.6]} 36.
g4 {[%clk 0:01:15.8]} 36... Kf6 {[%clk 0:02:14.2]} 37. Rd2 {[%clk 0:01:05.7]}
37... h5 {[%clk 0:02:12.8]} 38. h3 {[%clk 0:01:02]} 38... h4 {[%clk 0:02:13.9]}
39. Ke2 {[%clk 0:00:58.5]} 39... Rc1 {[%clk 0:02:09.7]} 40. Rd1 {[%clk
0:00:58.2]} 40... Rc2+ {[%clk 0:02:06.4]} 41. Rd2 {[%clk 0:00:59.3]} 41... Rc1
{[%clk 0:02:07.8]} 42. Rd1 {[%clk 0:01:00.2]} 42... Rc8 {[%clk 0:02:07.5]} 43.
Rd2 {[%clk 0:00:54.8]} 43... g5 {[%clk 0:02:07.9]} 44. Kf3 {[%clk 0:00:51.5]}
44... Rc2 {[%clk 0:02:03.3]} 45. fxg5+ {[%clk 0:00:49.4]} 45... Kxg5 {[%clk
0:02:03.9]} 46. Ke3 {[%clk 0:00:50.3]} 46... Rc1 {[%clk 0:02:02]} 47. Kf2 {[%clk
0:00:46.4]} 47... Kf4 {[%clk 0:01:58.7]} 48. Re2 {[%clk 0:00:46.6]} 48... Rc2
{[%clk 0:01:57]} 49. Ke1 {[%clk 0:00:36.8]} 49... Rxe2+ {[%clk 0:01:54.6]} 50.
Kxe2 {[%clk 0:00:37.7]} 50... Ke4 {[%clk 0:01:56.5]} 51. g5 {[%clk 0:00:29.8]}
51... Kf5 {[%clk 0:01:57.5]} 52. Kd3 {[%clk 0:00:11.4]} 52... Kxg5 {[%clk
0:01:58.3]} 53. Ke3 {[%clk 0:00:12]} 53... Kf5 {[%clk 0:01:56.6]} 54. Kf3 {[%clk
0:00:13.2]} 54... e5 {[%clk 0:01:57.9]} 55. Ke3 {[%clk 0:00:09.6]} 55... e4
{[%clk 0:01:55]} 56. Ke2 {[%clk 0:00:10.1]} 56... Kf4 {[%clk 0:01:56.9]} 57. Kf2
{[%clk 0:00:11.2]} 57... e3+ {[%clk 0:01:58.4]} 58. Ke2 {[%clk 0:00:12.5]} 58...
Ke4 {[%clk 0:02:00.3]} 59. Kd1 {[%clk 0:00:13.1]} 59... Kxd4 {[%clk 0:02:02.2]}
60. Ke2 {[%clk 0:00:14.4]} 60... Ke4 {[%clk 0:02:03.5]} 0-1

[Event "*** Titled Tuesday 3|2 Blitz"]
[Site "Chess.com"]
[Date "2016.05.03"]
[Round "1"]
[White "Ginger_GM"]
[Black "Misha_Bilous"]
[Result "1-0"]
[WhiteElo "2552"]
[BlackElo "2232"]
[TimeControl "180+2"]
[EndTime "11:08:44 PDT"]
[Termination "Ginger_GM won on time"]

1. e4 {[%clk 0:02:59.3]} 1... c5 {[%clk 0:03:00.4]} 2. a3 {[%clk 0:02:59.5]}
2... e6 {[%clk 0:02:46.1]} 3. b4 {[%clk 0:02:59.9]} 3... cxb4 {[%clk 0:02:46.7]}
4. axb4 {[%clk 0:03:00.6]} 4... Bxb4 {[%clk 0:02:47.3]} 5. Bb2 {[%clk
0:03:01.3]} 5... Nf6 {[%clk 0:02:45.7]} 6. e5 {[%clk 0:03:01.7]} 6... Nd5 {[%clk
0:02:45.9]} 7. c4 {[%clk 0:03:02.1]} 7... Nc7 {[%clk 0:02:37.1]} 8. Ra3 {[%clk
0:03:02.3]} 8... Bxa3 {[%clk 0:02:26.7]} 9. Bxa3 {[%clk 0:03:02.5]} 9... d6
{[%clk 0:02:14]} 10. Bxd6 {[%clk 0:02:54.8]} 10... Nc6 {[%clk 0:02:06.3]} 11.
Qg4 {[%clk 0:02:48.6]} 11... Rg8 {[%clk 0:02:03.7]} 12. Nc3 {[%clk 0:02:39]}
12... Ne7 {[%clk 0:01:20.1]} 13. Ne4 {[%clk 0:02:16.4]} 13... Ng6 {[%clk
0:01:20.5]} 14. Nf3 {[%clk 0:02:01.4]} 14... f5 {[%clk 0:01:13.1]} 15. exf6
{[%clk 0:01:55.5]} 15... gxf6 {[%clk 0:01:14.2]} 16. Bxc7 {[%clk 0:01:45.5]}
16... Qxc7 {[%clk 0:00:58.4]} 17. Nxf6+ {[%clk 0:01:45.7]} 17... Kf7 {[%clk
0:00:59.7]} 18. Nxg8 {[%clk 0:01:46.6]} 18... Kxg8 {[%clk 0:01:00.8]} 19. Bd3
{[%clk 0:01:45.8]} 19... Qg7 {[%clk 0:00:55.6]} 20. O-O {[%clk 0:01:40.9]} 20...
Bd7 {[%clk 0:00:53]} 21. h4 {[%clk 0:01:28.3]} 21... Rf8 {[%clk 0:00:49.8]} 22.
h5 {[%clk 0:01:23.1]} 22... Nf4 {[%clk 0:00:46.5]} 23. Qxg7+ {[%clk 0:01:22.3]}
23... Kxg7 {[%clk 0:00:47.6]} 24. Be4 {[%clk 0:01:22.1]} 24... Bc6 {[%clk
0:00:38.2]} 25. Bxc6 {[%clk 0:01:20.7]} 25... bxc6 {[%clk 0:00:39.8]} 26. Ra1
{[%clk 0:01:20.8]} 26... Rf7 {[%clk 0:00:39.8]} 27. Ne5 {[%clk 0:01:20.3]} 27...
Rc7 {[%clk 0:00:39.4]} 28. g4 {[%clk 0:01:12.4]} 28... Kf6 {[%clk 0:00:37.6]}
29. Nf3 {[%clk 0:01:03.7]} 29... Rd7 {[%clk 0:00:29.8]} 30. Ra5 {[%clk
0:00:44.5]} 30... Rd3 {[%clk 0:00:19.7]} 31. g5+ {[%clk 0:00:45.2]} 31... Ke7
{[%clk 0:00:21.3]} 32. Ne5 {[%clk 0:00:41.2]} 32... Rxd2 {[%clk 0:00:19.7]} 33.
Rxa7+ {[%clk 0:00:34.2]} 33... Ke8 {[%clk 0:00:20.9]} 34. g6 {[%clk 0:00:32.4]}
34... hxg6 {[%clk 0:00:20.2]} 35. hxg6 {[%clk 0:00:32.7]} 35... Nh3+ {[%clk
0:00:20.7]} 36. Kg2 {[%clk 0:00:32.2]} 36... Nxf2 {[%clk 0:00:21.9]} 37. Kf3
{[%clk 0:00:32.4]} 37... Nh1 {[%clk 0:00:06.1]} 38. Ng4 {[%clk 0:00:25.9]} 38...
Rd3+ {[%clk 0:00:05.2]} 39. Kf4 {[%clk 0:00:26.9]} 39... Rd2 {[%clk 0:00:04.8]}
40. g7 {[%clk 0:00:27.8]} 1-0

[Event "*** Titled Tuesday 3|2 Blitz"]
[Site "Chess.com"]
[Date "2016.05.03"]
[Round "1"]
[White "KyronGriffith"]
[Black "Anton_Demchenko"]
[Result "0-1"]
[WhiteElo "2313"]
[BlackElo "2641"]
[TimeControl "180+2"]
[EndTime "11:08:45 PDT"]
[Termination "Anton_Demchenko won by resignation"]

1. d4 {[%clk 0:02:57.3]} 1... Nf6 {[%clk 0:03:00.3]} 2. Nf3 {[%clk 0:02:57.5]}
2... g6 {[%clk 0:03:01.4]} 3. g3 {[%clk 0:02:58.5]} 3... Bg7 {[%clk 0:03:02.7]}
4. Bg2 {[%clk 0:02:59.9]} 4... O-O {[%clk 0:03:04.6]} 5. c4 {[%clk 0:03:01.1]}
5... d6 {[%clk 0:03:06.5]} 6. O-O {[%clk 0:03:01.9]} 6... Nbd7 {[%clk
0:03:08.4]} 7. Nc3 {[%clk 0:03:02.4]} 7... e5 {[%clk 0:03:10]} 8. e4 {[%clk
0:03:02.4]} 8... exd4 {[%clk 0:03:11.3]} 9. Nxd4 {[%clk 0:03:03.8]} 9... Nc5
{[%clk 0:03:13.2]} 10. Re1 {[%clk 0:03:00.8]} 10... Re8 {[%clk 0:03:13.9]} 11.
h3 {[%clk 0:02:54.5]} 11... Bd7 {[%clk 0:03:14.7]} 12. b4 {[%clk 0:02:41.4]}
12... Ne6 {[%clk 0:03:05]} 13. Be3 {[%clk 0:02:39.8]} 13... a5 {[%clk
0:02:39.1]} 14. a3 {[%clk 0:02:30.8]} 14... h6 {[%clk 0:02:33.1]} 15. Qd2 {[%clk
0:02:28.3]} 15... Ng5 {[%clk 0:02:28.9]} 16. Bxg5 {[%clk 0:02:13]} 16... hxg5
{[%clk 0:02:29.6]} 17. Rad1 {[%clk 0:02:02.8]} 17... axb4 {[%clk 0:02:28]} 18.
axb4 {[%clk 0:01:59]} 18... g4 {[%clk 0:02:23.3]} 19. h4 {[%clk 0:01:55.7]}
19... Nh5 {[%clk 0:01:55]} 20. c5 {[%clk 0:01:44.4]} 20... dxc5 {[%clk
0:01:55.2]} 21. bxc5 {[%clk 0:01:41.4]} 21... Be5 {[%clk 0:01:54.8]} 22. Nd5
{[%clk 0:01:23.2]} 22... Ba4 {[%clk 0:01:31.9]} 23. Rb1 {[%clk 0:01:16.9]} 23...
c6 {[%clk 0:01:27.9]} 24. Rxb7 {[%clk 0:01:14.1]} 24... Bxd4 {[%clk 0:00:53.7]}
25. Qxd4 {[%clk 0:01:05.6]} 25... cxd5 {[%clk 0:00:55]} 26. Ra1 {[%clk
0:00:54.1]} 26... dxe4 {[%clk 0:00:36]} 27. Rxa4 {[%clk 0:00:50.1]} 27... Rxa4
{[%clk 0:00:19.7]} 28. Qxa4 {[%clk 0:00:50.5]} 28... e3 {[%clk 0:00:21.2]} 29.
fxe3 {[%clk 0:00:48.8]} 29... Rxe3 {[%clk 0:00:18.7]} 30. Qxg4 {[%clk
0:00:37.7]} 30... Rxg3 {[%clk 0:00:13.8]} 31. Qc4 {[%clk 0:00:36.9]} 31... Qf6
{[%clk 0:00:13.3]} 32. Qf1 {[%clk 0:00:30.9]} 32... Nf4 {[%clk 0:00:13.9]} 33.
Rb6 {[%clk 0:00:25.8]} 33... Qxh4 {[%clk 0:00:12.9]} 34. Rb2 {[%clk 0:00:24.6]}
34... Nh3+ {[%clk 0:00:13]} 35. Kh2 {[%clk 0:00:25]} 35... Ng5+ {[%clk 0:00:14]}
36. Kg1 {[%clk 0:00:26.6]} 36... Qd4+ {[%clk 0:00:13.9]} 37. Qf2 {[%clk
0:00:25.4]} 37... Nh3+ {[%clk 0:00:14.6]} 0-1

[Event "*** Titled Tuesday 3|2 Blitz"]
[Site "Chess.com"]
[Date "2016.05.03"]
[Round "1"]
[White "Grootneus"]
[Black "GM_Levan_Pantsulaia"]
[Result "0-1"]
[WhiteElo "2047"]
[BlackElo "2434"]
[TimeControl "180+2"]
[EndTime "11:08:55 PDT"]
[Termination "GM_Levan_Pantsulaia won by resignation"]

1. e4 {[%clk 0:02:27]} 1... c6 {[%clk 0:02:59.6]} 2. d4 {[%clk 0:02:27]} 2... d5
{[%clk 0:03:00.1]} 3. Nc3 {[%clk 0:02:28.4]} 3... dxe4 {[%clk 0:03:00.9]} 4.
Nxe4 {[%clk 0:02:30.3]} 4... Bf5 {[%clk 0:03:00.7]} 5. Ng3 {[%clk 0:02:31.5]}
5... Bg6 {[%clk 0:03:01.7]} 6. h4 {[%clk 0:02:33.2]} 6... h6 {[%clk 0:03:02.4]}
7. Nf3 {[%clk 0:02:34.8]} 7... e6 {[%clk 0:03:02.8]} 8. h5 {[%clk 0:02:36.2]}
8... Bh7 {[%clk 0:03:03.5]} 9. Bd3 {[%clk 0:02:36.3]} 9... Bxd3 {[%clk
0:03:03.4]} 10. Qxd3 {[%clk 0:02:38.2]} 10... Nf6 {[%clk 0:03:04.7]} 11. Bd2
{[%clk 0:02:37]} 11... Bd6 {[%clk 0:03:01.4]} 12. Ne4 {[%clk 0:02:37.5]} 12...
Nxe4 {[%clk 0:03:01.5]} 13. Qxe4 {[%clk 0:02:39.4]} 13... Nd7 {[%clk 0:03:02.2]}
14. O-O-O {[%clk 0:02:40.3]} 14... Qc7 {[%clk 0:03:00.2]} 15. g3 {[%clk
0:02:40.6]} 15... Nf6 {[%clk 0:02:59.1]} 16. Qe2 {[%clk 0:02:41.7]} 16... O-O-O
{[%clk 0:02:59.2]} 17. Kb1 {[%clk 0:02:39.2]} 17... Rd7 {[%clk 0:02:53.9]} 18.
c4 {[%clk 0:02:35.8]} 18... c5 {[%clk 0:02:43.5]} 19. Bc3 {[%clk 0:02:36.6]}
19... cxd4 {[%clk 0:02:22.9]} 20. Nxd4 {[%clk 0:02:38.5]} 20... a6 {[%clk
0:02:22.5]} 21. f4 {[%clk 0:02:27.7]} 21... Rhd8 {[%clk 0:02:21.3]} 22. Nf3
{[%clk 0:02:27.4]} 22... Qc6 {[%clk 0:02:16.6]} 23. Ka1 {[%clk 0:02:03.6]} 23...
Bc7 {[%clk 0:02:14]} 24. Ne5 {[%clk 0:01:55.2]} 24... Qe4 {[%clk 0:02:03.8]} 25.
Qxe4 {[%clk 0:01:37.9]} 25... Rxd1+ {[%clk 0:02:04.4]} 26. Rxd1 {[%clk
0:01:39.6]} 26... Rxd1+ {[%clk 0:02:03.1]} 27. Qb1 {[%clk 0:01:41.1]} 27...
Rxb1+ {[%clk 0:02:03.8]} 28. Kxb1 {[%clk 0:01:43]} 28... Nxh5 {[%clk 0:01:47.1]}
29. Nxf7 {[%clk 0:01:38.6]} 29... Nxg3 {[%clk 0:01:27]} 30. Bxg7 {[%clk
0:01:15.8]} 30... h5 {[%clk 0:01:27.3]} 31. Ng5 {[%clk 0:00:50.2]} 31... h4
{[%clk 0:01:05]} 32. Nxe6 {[%clk 0:00:33.3]} 32... h3 {[%clk 0:01:03]} 33. Nxc7
{[%clk 0:00:29.2]} 33... h2 {[%clk 0:00:55.6]} 34. Nd5 {[%clk 0:00:28.5]} 34...
h1=Q+ {[%clk 0:00:55.1]} 35. Kc2 {[%clk 0:00:30.2]} 35... Qe4+ {[%clk
0:00:53.6]} 36. Kb3 {[%clk 0:00:27.1]} 36... Nf5 {[%clk 0:00:50.8]} 37. Be5
{[%clk 0:00:25.3]} 37... Ne3 {[%clk 0:00:44.6]} 38. Nb6+ {[%clk 0:00:16.1]}
38... Kd8 {[%clk 0:00:45.6]} 39. Kb4 {[%clk 0:00:08.5]} 39... Qc6 {[%clk
0:00:34.4]} 40. Bd4 {[%clk 0:00:05.4]} 40... Nc2+ {[%clk 0:00:34]} 41. Kc3
{[%clk 0:00:06.6]} 41... Nxd4 {[%clk 0:00:34.8]} 0-1

[Event "*** Titled Tuesday 3|2 Blitz"]
[Site "Chess.com"]
[Date "2016.05.03"]
[Round "1"]
[White "KuzubovYuriy"]
[Black "defibaugh"]
[Result "1-0"]
[WhiteElo "2602"]
[BlackElo "2299"]
[TimeControl "180+2"]
[EndTime "11:08:56 PDT"]
[Termination "KuzubovYuriy won by resignation"]

1. d4 {[%clk 0:03:01.9]} 1... Nf6 {[%clk 0:02:45.4]} 2. c4 {[%clk 0:03:02.7]}
2... g6 {[%clk 0:02:47.3]} 3. Nc3 {[%clk 0:03:03.2]} 3... d5 {[%clk 0:02:49]} 4.
Bg5 {[%clk 0:03:03.5]} 4... Ne4 {[%clk 0:02:49.4]} 5. Bh4 {[%clk 0:03:04]} 5...
Nxc3 {[%clk 0:02:50.3]} 6. bxc3 {[%clk 0:03:05.9]} 6... Bg7 {[%clk 0:02:51.9]}
7. e3 {[%clk 0:03:06.1]} 7... c5 {[%clk 0:02:52.9]} 8. cxd5 {[%clk 0:03:06.8]}
8... cxd4 {[%clk 0:02:54.1]} 9. cxd4 {[%clk 0:03:07.4]} 9... Qxd5 {[%clk
0:02:55.1]} 10. Nf3 {[%clk 0:03:09.1]} 10... Nc6 {[%clk 0:02:56.2]} 11. Be2
{[%clk 0:03:10.1]} 11... Qa5+ {[%clk 0:02:56.6]} 12. Nd2 {[%clk 0:03:10.9]}
12... O-O {[%clk 0:02:56.7]} 13. O-O {[%clk 0:03:11.7]} 13... e5 {[%clk
0:02:57.9]} 14. Nc4 {[%clk 0:03:10.2]} 14... Qd5 {[%clk 0:02:48.4]} 15. dxe5
{[%clk 0:03:10.1]} 15... Qxd1 {[%clk 0:02:44.5]} 16. Rfxd1 {[%clk 0:03:12]}
16... Nxe5 {[%clk 0:02:44.5]} 17. Rab1 {[%clk 0:03:10.4]} 17... b6 {[%clk
0:02:38.4]} 18. Nd6 {[%clk 0:02:42.4]} 18... Be6 {[%clk 0:02:32.1]} 19. Be7
{[%clk 0:02:39.2]} 19... Rfb8 {[%clk 0:02:26.2]} 20. a4 {[%clk 0:02:33.1]} 20...
Bf8 {[%clk 0:02:14.3]} 21. Bh4 {[%clk 0:02:27.6]} 21... a6 {[%clk 0:01:48.2]}
22. h3 {[%clk 0:02:15.7]} 22... Ra7 {[%clk 0:01:34]} 23. f4 {[%clk 0:02:11.6]}
23... Nc6 {[%clk 0:01:25.6]} 24. Ne4 {[%clk 0:01:48.2]} 24... Be7 {[%clk
0:01:04.6]} 25. Bxe7 {[%clk 0:01:45.1]} 25... Nxe7 {[%clk 0:01:00.2]} 26. Ng5
{[%clk 0:01:43]} 26... Nd5 {[%clk 0:00:43.4]} 27. Nxe6 {[%clk 0:01:40.6]} 27...
fxe6 {[%clk 0:00:44.9]} 28. Rd3 {[%clk 0:01:37.5]} 28... Rc7 {[%clk 0:00:38.5]}
29. Rbb3 {[%clk 0:01:11.5]} 29... a5 {[%clk 0:00:25]} 30. Bf3 {[%clk 0:01:09.7]}
30... Nb4 {[%clk 0:00:25.6]} 31. Rd6 {[%clk 0:01:10]} 31... Kf7 {[%clk
0:00:26.7]} 32. Bg4 {[%clk 0:01:05.4]} 32... Re7 {[%clk 0:00:21.7]} 33. Rc3
{[%clk 0:01:03.1]} 33... e5 {[%clk 0:00:22.4]} 34. Bf3 {[%clk 0:00:56.7]} 34...
e4 {[%clk 0:00:16.4]} 35. Be2 {[%clk 0:00:55.3]} 35... Kg7 {[%clk 0:00:06.4]}
36. Bb5 {[%clk 0:00:50.9]} 36... Rbb7 {[%clk 0:00:05]} 37. Rd4 {[%clk
0:00:43.7]} 37... Rbc7 {[%clk 0:00:05.3]} 38. Rxe4 {[%clk 0:00:42.1]} 38... Rxe4
{[%clk 0:00:04.6]} 39. Rxc7+ {[%clk 0:00:42.6]} 39... Kf6 {[%clk 0:00:06.5]} 40.
Bc4 {[%clk 0:00:21.8]} 40... g5 {[%clk 0:00:03.3]} 41. fxg5+ {[%clk 0:00:22.6]}
41... Kxg5 {[%clk 0:00:04.5]} 42. Kf2 {[%clk 0:00:23.5]} 42... Re5 {[%clk
0:00:04.1]} 43. Rxh7 {[%clk 0:00:23.1]} 43... Na2 {[%clk 0:00:05]} 44. Bxa2
{[%clk 0:00:23.5]} 1-0

[Event "*** Titled Tuesday 3|2 Blitz"]
[Site "Chess.com"]
[Date "2016.05.03"]
[Round "1"]
[White "yian123"]
[Black "ChadaevNikolay"]
[Result "1-0"]
[WhiteElo "2424"]
[BlackElo "2554"]
[TimeControl "180+2"]
[EndTime "11:08:56 PDT"]
[Termination "yian123 won on time"]

1. e4 {[%clk 0:02:59.1]} 1... c6 {[%clk 0:02:59.9]} 2. d4 {[%clk 0:02:59.6]}
2... d5 {[%clk 0:03:01.3]} 3. Nd2 {[%clk 0:03:01]} 3... dxe4 {[%clk 0:03:01.8]}
4. Nxe4 {[%clk 0:03:02.5]} 4... h6 {[%clk 0:03:03.2]} 5. Bc4 {[%clk 0:03:00.5]}
5... Bf5 {[%clk 0:03:02.7]} 6. Ng3 {[%clk 0:03:01.3]} 6... Bh7 {[%clk
0:03:02.7]} 7. N1e2 {[%clk 0:03:01.4]} 7... Nf6 {[%clk 0:03:00.3]} 8. c3 {[%clk
0:03:01]} 8... e6 {[%clk 0:03:00.8]} 9. O-O {[%clk 0:03:00]} 9... Nbd7 {[%clk
0:02:52.8]} 10. Nf4 {[%clk 0:03:00.6]} 10... Nd5 {[%clk 0:02:51.3]} 11. Qe2
{[%clk 0:02:49.5]} 11... N7f6 {[%clk 0:02:43.2]} 12. Ngh5 {[%clk 0:02:46.8]}
12... Nxh5 {[%clk 0:01:50.3]} 13. Nxh5 {[%clk 0:02:33.5]} 13... Qd7 {[%clk
0:01:47.2]} 14. a4 {[%clk 0:02:29.5]} 14... a5 {[%clk 0:01:46.6]} 15. Nf4 {[%clk
0:02:24.9]} 15... Nxf4 {[%clk 0:01:40.4]} 16. Bxf4 {[%clk 0:02:25.1]} 16... Bd6
{[%clk 0:01:41.9]} 17. Be5 {[%clk 0:02:23]} 17... O-O {[%clk 0:01:37.2]} 18.
Rfe1 {[%clk 0:02:19.6]} 18... Rfe8 {[%clk 0:01:28.1]} 19. Qg4 {[%clk 0:02:18]}
19... Bf8 {[%clk 0:01:18.6]} 20. Re3 {[%clk 0:02:06.9]} 20... Bf5 {[%clk
0:01:17.7]} 21. Qg3 {[%clk 0:01:57.7]} 21... b5 {[%clk 0:01:15.5]} 22. Bd3
{[%clk 0:01:42.4]} 22... Bxd3 {[%clk 0:01:11.3]} 23. Rxd3 {[%clk 0:01:44.3]}
23... Qd5 {[%clk 0:00:44.8]} 24. Qg4 {[%clk 0:01:39.1]} 24... g6 {[%clk
0:00:21.8]} 25. axb5 {[%clk 0:01:33.5]} 25... Qxb5 {[%clk 0:00:21.2]} 26. Rd2
{[%clk 0:01:28.3]} 26... Bg7 {[%clk 0:00:22]} 27. Re1 {[%clk 0:01:25.5]} 27...
a4 {[%clk 0:00:21.9]} 28. h4 {[%clk 0:01:20.8]} 28... a3 {[%clk 0:00:22.4]} 29.
bxa3 {[%clk 0:01:19.3]} 29... Rxa3 {[%clk 0:00:23.2]} 30. h5 {[%clk 0:01:07.4]}
30... g5 {[%clk 0:00:24.4]} 31. f4 {[%clk 0:01:05]} 31... f5 {[%clk 0:00:25.6]}
32. Qg3 {[%clk 0:00:56.7]} 32... Bxe5 {[%clk 0:00:21.2]} 33. dxe5 {[%clk
0:00:51.9]} 33... Qc5+ {[%clk 0:00:22.1]} 34. Qe3 {[%clk 0:00:37.1]} 34... Rxc3
{[%clk 0:00:23]} 35. Qxc5 {[%clk 0:00:37.7]} 35... Rxc5 {[%clk 0:00:24.9]} 36.
fxg5 {[%clk 0:00:38.9]} 36... hxg5 {[%clk 0:00:26.1]} 37. Rd7 {[%clk 0:00:40.3]}
37... Rd5 {[%clk 0:00:26.3]} 38. Rc7 {[%clk 0:00:40.1]} 38... c5 {[%clk
0:00:25.7]} 39. h6 {[%clk 0:00:41]} 39... Rf8 {[%clk 0:00:25.3]} 40. Ra1 {[%clk
0:00:34.7]} 40... c4 {[%clk 0:00:20.6]} 41. Raa7 {[%clk 0:00:33.9]} 41... Rfd8
{[%clk 0:00:19.1]} 42. Rh7 {[%clk 0:00:29.9]} 42... Rd1+ {[%clk 0:00:17.7]} 43.
Kh2 {[%clk 0:00:30.5]} 1-0

[Event "*** Titled Tuesday 3|2 Blitz"]
[Site "Chess.com"]
[Date "2016.05.03"]
[Round "1"]
[White "chessbia"]
[Black "Blitzstream"]
[Result "1/2-1/2"]
[WhiteElo "2036"]
[BlackElo "2409"]
[TimeControl "180+2"]
[EndTime "11:09:09 PDT"]
[Termination "Game drawn by agreement"]

1. d4 {[%clk 0:02:57.2]} 1... d5 {[%clk 0:03:00.7]} 2. c4 {[%clk 0:02:57.3]}
2... c6 {[%clk 0:03:01.6]} 3. cxd5 {[%clk 0:02:54.2]} 3... cxd5 {[%clk
0:03:02.4]} 4. Bf4 {[%clk 0:02:55.8]} 4... Nf6 {[%clk 0:03:03.2]} 5. Nc3 {[%clk
0:02:57.3]} 5... Nc6 {[%clk 0:03:04.4]} 6. e3 {[%clk 0:02:58.4]} 6... e6 {[%clk
0:03:01.9]} 7. Bd3 {[%clk 0:02:56.7]} 7... Bd6 {[%clk 0:03:02.1]} 8. Bxd6 {[%clk
0:02:57.3]} 8... Qxd6 {[%clk 0:03:04]} 9. f4 {[%clk 0:02:59]} 9... O-O {[%clk
0:03:04.2]} 10. Nf3 {[%clk 0:03:00.5]} 10... Nb4 {[%clk 0:03:02]} 11. Bb1 {[%clk
0:03:01.1]} 11... b6 {[%clk 0:02:55.6]} 12. O-O {[%clk 0:03:01.7]} 12... Ba6
{[%clk 0:02:56.4]} 13. Rf2 {[%clk 0:03:01.6]} 13... g6 {[%clk 0:02:18.1]} 14. h3
{[%clk 0:02:58.7]} 14... Rac8 {[%clk 0:02:11.2]} 15. a3 {[%clk 0:02:59.2]} 15...
Nc6 {[%clk 0:02:11.8]} 16. Ne5 {[%clk 0:02:54.4]} 16... Bb7 {[%clk 0:02:05.2]}
17. Bd3 {[%clk 0:02:48.6]} 17... Na5 {[%clk 0:02:04.9]} 18. g4 {[%clk
0:02:44.1]} 18... Ne4 {[%clk 0:01:59.4]} 19. Bxe4 {[%clk 0:02:38]} 19... dxe4
{[%clk 0:02:01.3]} 20. g5 {[%clk 0:02:35.6]} 20... Nc4 {[%clk 0:01:48.4]} 21.
Qe1 {[%clk 0:02:28.2]} 21... Nxe5 {[%clk 0:01:43.4]} 22. fxe5 {[%clk 0:02:29.2]}
22... Qe7 {[%clk 0:01:37.7]} 23. h4 {[%clk 0:02:30.2]} 23... h5 {[%clk
0:01:37.6]} 24. gxh6 {[%clk 0:02:06.1]} 24... Qxh4 {[%clk 0:01:37.2]} 25. h7+
{[%clk 0:02:06.9]} 25... Kh8 {[%clk 0:01:13.6]} 26. Rf4 {[%clk 0:02:07.2]} 26...
Qxe1+ {[%clk 0:01:11.6]} 27. Rxe1 {[%clk 0:02:07.8]} 27... Kxh7 {[%clk
0:01:11.9]} 28. Ref1 {[%clk 0:02:03.6]} 28... Kg7 {[%clk 0:01:12]} 29. R1f2
{[%clk 0:01:59.9]} 29... Rc7 {[%clk 0:01:11.9]} 30. Nb5 {[%clk 0:02:00.2]} 30...
Rd7 {[%clk 0:00:53.4]} 31. Nd6 {[%clk 0:01:57.4]} 31... Bd5 {[%clk 0:00:49.3]}
32. b4 {[%clk 0:01:55.5]} 32... a6 {[%clk 0:00:32.2]} 33. Kg2 {[%clk 0:01:54.4]}
33... b5 {[%clk 0:00:32.9]} 34. Kg3 {[%clk 0:01:54.8]} 34... Rc7 {[%clk
0:00:25.9]} 35. Kg4 {[%clk 0:01:41]} 35... Rd7 {[%clk 0:00:26.9]} 36. Rc2 {[%clk
0:01:36.8]} 36... Rh8 {[%clk 0:00:21.2]} 37. Rcf2 {[%clk 0:01:31.8]} 37... Rf8
{[%clk 0:00:21.8]} 38. Rc2 {[%clk 0:01:22]} 38... Rh8 {[%clk 0:00:22.8]} 39.
Nxe4 {[%clk 0:01:19.2]} 39... Bxe4 {[%clk 0:00:23.3]} 40. Rxe4 {[%clk
0:01:21.1]} 40... Rh1 {[%clk 0:00:24.9]} 41. Rf4 {[%clk 0:01:17.1]} 41... Rg1+
{[%clk 0:00:25]} 42. Kf3 {[%clk 0:01:17.6]} 42... Ra1 {[%clk 0:00:26.1]} 43. Rc3
{[%clk 0:01:18.4]} 43... Ra2 {[%clk 0:00:27.3]} 44. Ke4 {[%clk 0:01:15.7]} 44...
Ra7 {[%clk 0:00:28.4]} 45. Rf1 {[%clk 0:01:09.1]} 45... Rd7 {[%clk 0:00:27.4]}
46. Rd1 {[%clk 0:01:07.1]} 46... Ra7 {[%clk 0:00:26.8]} 47. d5 {[%clk
0:01:05.6]} 47... exd5+ {[%clk 0:00:27.7]} 48. Rxd5 {[%clk 0:01:07.5]} 48... Re7
{[%clk 0:00:28.5]} 49. Rd6 {[%clk 0:01:08.5]} 49... Ra7 {[%clk 0:00:28.6]} 50.
e6 {[%clk 0:01:04.2]} 50... fxe6 {[%clk 0:00:29.6]} 51. Rxe6 {[%clk 0:01:06.1]}
51... a5 {[%clk 0:00:30]} 52. Rcc6 {[%clk 0:01:02.3]} 52... Rxa3 {[%clk
0:00:29.5]} 53. Rxg6+ {[%clk 0:01:03.2]} 53... Kh7 {[%clk 0:00:30.7]} 54. bxa5
{[%clk 0:01:03.8]} 54... R3xa5 {[%clk 0:00:31.2]} 55. Rh6+ {[%clk 0:01:00.8]}
55... Kg7 {[%clk 0:00:32.3]} 56. Rcg6+ {[%clk 0:01:01.5]} 56... Kf7 {[%clk
0:00:33.8]} 57. Rf6+ {[%clk 0:01:02.7]} 57... Kg7 {[%clk 0:00:34.6]} 58. Rfg6+
{[%clk 0:01:03.7]} 58... Kf7 {[%clk 0:00:35.7]} 1/2-1/2